[Event "Titled Tuesday Blitz January 04 2022"]
[White "Tsydypov, Zhamsaran"]
[Black "Gareyev, Timur"]
[WhiteFideId "4108566"]
[BlackFideId "14200937"]
[WhiteElo "2614"]
[BlackElo "2586"]
[Result "1-0"]
[Round "07"]
[TimeControl "180+1"]
[Date "2022.01.04"]
[WhiteClock "0:00:53"]
[BlackClock "0:00:01"]

1. e4 {[%clk 0:03:00]}  e5 {[%clk 0:02:56]} 2. Nf3 {[%clk 0:03:00]}  Nc6 {[%clk 0:02:56]} 3. d4 {[%clk 0:03:00]}  exd4 {[%clk 0:02:54]} 4. Nxd4 {[%clk 0:03:01]}  Nf6 {[%clk 0:02:53]} 5. Nxc6 {[%clk 0:03:00]}  bxc6 {[%clk 0:02:52]} 6. e5 {[%clk 0:03:00]}  Qe7 {[%clk 0:02:52]} 7. Qe2 {[%clk 0:03:00]}  Nd5 {[%clk 0:02:50]} 8. h4 {[%clk 0:03:00]}  a5 {[%clk 0:02:47]} 9. c4 {[%clk 0:02:57]}  Ba6 {[%clk 0:02:47]} 10. Nd2 {[%clk 0:02:57]}  Nb4 {[%clk 0:02:44]} 11. Nf3 {[%clk 0:02:54]}  d5 {[%clk 0:02:25]} 12. a3 {[%clk 0:02:53]}  Bxc4 {[%clk 0:02:24]} 13. Qd2 {[%clk 0:02:31]}  Bxf1 {[%clk 0:02:02]} 14. Kxf1 {[%clk 0:02:27]}  Na6 {[%clk 0:01:59]} 15. Qxa5 {[%clk 0:02:27]}  Qd7 {[%clk 0:01:52]} 16. h5 {[%clk 0:02:13]}  Be7 {[%clk 0:01:47]} 17. h6 {[%clk 0:02:12]}  g6 {[%clk 0:01:45]} 18. Qc3 {[%clk 0:02:11]}  O-O {[%clk 0:01:37]} 19. e6 {[%clk 0:02:06]}  d4 {[%clk 0:01:37]} 20. Qxd4 {[%clk 0:01:37]}  Qxd4 {[%clk 0:01:35]} 21. Nxd4 {[%clk 0:01:37]}  Bc5 {[%clk 0:01:35]} 22. exf7+ {[%clk 0:01:34]}  Rxf7 {[%clk 0:01:36]} 23. Nf3 {[%clk 0:01:34]}  Nb4 {[%clk 0:01:30]} 24. Bd2 {[%clk 0:01:32]}  Nd3 {[%clk 0:01:29]} 25. Bc3 {[%clk 0:01:29]}  Nxf2 {[%clk 0:01:25]} 26. Rh4 {[%clk 0:01:28]}  g5 {[%clk 0:01:17]} 27. Rc4 {[%clk 0:01:24]}  Bb6 {[%clk 0:00:59]} 28. Nxg5 {[%clk 0:01:24]}  Rf5 {[%clk 0:00:35]} 29. Nf3 {[%clk 0:01:24]}  Rh5 {[%clk 0:00:28]} 30. Rh4 {[%clk 0:01:22]}  Rxh4 {[%clk 0:00:25]} 31. Nxh4 {[%clk 0:01:22]}  Rf8 {[%clk 0:00:21]} 32. Nf3 {[%clk 0:01:18]}  Ng4 {[%clk 0:00:21]} 33. Bd2 {[%clk 0:01:16]}  Rf6 {[%clk 0:00:13]} 34. a4 {[%clk 0:01:16]}  Nxh6 {[%clk 0:00:07]} 35. a5 {[%clk 0:01:15]}  Ba7 {[%clk 0:00:08]} 36. Ra4 {[%clk 0:01:12]}  Nf5 {[%clk 0:00:07]} 37. Rb4 {[%clk 0:01:06]}  Re6 {[%clk 0:00:08]} 38. Bf4 {[%clk 0:00:57]}  Nd6 {[%clk 0:00:04]} 39. Bxd6 {[%clk 0:00:54]}  cxd6 {[%clk 0:00:02]} 40. Rb7 {[%clk 0:00:55]}  Be3 {[%clk 0:00:01]} 41. a6 {[%clk 0:00:55]}  Re8 {[%clk 0:00:01]} 42. a7 {[%clk 0:00:54]}  Kf8 {[%clk 0:00:01]} 43. Rxh7 {[%clk 0:00:53]} 1-0


[Site "https://www.chess.com"]

[Event "Titled Tuesday Blitz January 04 2022"]
[White "Vokhidov, Shamsiddin"]
[Black "Narayanan.S.L"]
[WhiteFideId "14204223"]
[BlackFideId "5058422"]
[WhiteElo "2611"]
[BlackElo "2494"]
[Result "1-0"]
[Round "07"]
[TimeControl "180+1"]
[Date "2022.01.04"]
[WhiteClock "0:00:53"]
[BlackClock "0:00:30"]

1. e4 {[%clk 0:03:00]}  e5 {[%clk 0:03:00]} 2. Nf3 {[%clk 0:03:00]}  Nc6 {[%clk 0:03:00]} 3. Bb5 {[%clk 0:03:00]}  a6 {[%clk 0:03:00]} 4. Ba4 {[%clk 0:03:01]}  f5 {[%clk 0:03:00]} 5. d4 {[%clk 0:03:00]}  fxe4 {[%clk 0:02:59]} 6. Nxe5 {[%clk 0:02:59]}  Nf6 {[%clk 0:02:59]} 7. O-O {[%clk 0:02:59]}  Na5 {[%clk 0:02:40]} 8. c4 {[%clk 0:02:43]}  Nxc4 {[%clk 0:02:36]} 9. Nxc4 {[%clk 0:02:41]}  b5 {[%clk 0:02:36]} 10. Ncd2 {[%clk 0:02:24]}  bxa4 {[%clk 0:02:31]} 11. Nxe4 {[%clk 0:02:24]}  Nxe4 {[%clk 0:02:17]} 12. Qh5+ {[%clk 0:02:16]}  g6 {[%clk 0:02:17]} 13. Qe5+ {[%clk 0:02:16]}  Qe7 {[%clk 0:02:18]} 14. Qxh8 {[%clk 0:02:16]}  Bb7 {[%clk 0:02:18]} 15. Bh6 {[%clk 0:02:03]}  O-O-O {[%clk 0:02:17]} 16. Bxf8 {[%clk 0:02:03]}  Rxf8 {[%clk 0:02:17]} 17. Qe5 {[%clk 0:02:04]}  Qh4 {[%clk 0:02:04]} 18. f3 {[%clk 0:01:57]}  Ng5 {[%clk 0:01:09]} 19. Nd2 {[%clk 0:01:50]}  d6 {[%clk 0:00:57]} 20. Qe3 {[%clk 0:01:41]}  Bd5 {[%clk 0:00:53]} 21. Rac1 {[%clk 0:01:40]}  Ne6 {[%clk 0:00:52]} 22. Ne4 {[%clk 0:01:39]}  Kd7 {[%clk 0:00:50]} 23. Rfe1 {[%clk 0:01:36]}  Nf4 {[%clk 0:00:44]} 24. Qa3 {[%clk 0:01:13]}  Bxe4 {[%clk 0:00:40]} 25. Rxe4 {[%clk 0:01:13]}  Qg5 {[%clk 0:00:39]} 26. Qxa4+ {[%clk 0:01:08]}  Kd8 {[%clk 0:00:39]} 27. Qc2 {[%clk 0:01:04]}  Nd5 {[%clk 0:00:32]} 28. Rce1 {[%clk 0:01:02]}  Rxf3 {[%clk 0:00:30]} 29. Qc6 {[%clk 0:00:53]} 1-0


[Site "https://www.chess.com"]

[Event "Titled Tuesday Blitz January 04 2022"]
[White "Vypkhaniuk, Ihor"]
[Black "Bortnyk, Olexandr"]
[WhiteFideId "14112256"]
[BlackFideId "14120828"]
[WhiteElo "2327"]
[BlackElo "2723"]
[Result "0-1"]
[Round "07"]
[TimeControl "180+1"]
[Date "2022.01.04"]
[WhiteClock "0:00:01"]
[BlackClock "0:00:08"]

1. d4 {[%clk 0:02:59]}  Nf6 {[%clk 0:02:55]} 2. g3 {[%clk 0:02:59]}  d5 {[%clk 0:02:54]} 3. Bg2 {[%clk 0:02:59]}  Bf5 {[%clk 0:02:55]} 4. c4 {[%clk 0:03:00]}  e6 {[%clk 0:02:54]} 5. Nf3 {[%clk 0:02:55]}  Nc6 {[%clk 0:02:49]} 6. O-O {[%clk 0:02:52]}  dxc4 {[%clk 0:02:45]} 7. Qa4 {[%clk 0:02:43]}  Bd6 {[%clk 0:02:35]} 8. Ne5 {[%clk 0:02:18]}  O-O {[%clk 0:02:34]} 9. Nxc6 {[%clk 0:02:12]}  bxc6 {[%clk 0:02:35]} 10. Qxc6 {[%clk 0:02:10]}  Rb8 {[%clk 0:02:31]} 11. Nd2 {[%clk 0:01:58]}  Bg4 {[%clk 0:01:53]} 12. Re1 {[%clk 0:01:37]}  Be7 {[%clk 0:01:24]} 13. h3 {[%clk 0:01:21]}  Bf5 {[%clk 0:01:17]} 14. e3 {[%clk 0:01:07]}  Nd5 {[%clk 0:01:05]} 15. e4 {[%clk 0:00:51]}  Nb4 {[%clk 0:00:34]} 16. Qxc4 {[%clk 0:00:51]}  Bg6 {[%clk 0:00:35]} 17. a3 {[%clk 0:00:49]}  c5 {[%clk 0:00:35]} 18. axb4 {[%clk 0:00:48]}  Rxb4 {[%clk 0:00:36]} 19. Qc2 {[%clk 0:00:42]}  cxd4 {[%clk 0:00:36]} 20. Rxa7 {[%clk 0:00:36]}  d3 {[%clk 0:00:37]} 21. Qc7 {[%clk 0:00:35]}  Bd6 {[%clk 0:00:28]} 22. Qxd8 {[%clk 0:00:34]}  Rxd8 {[%clk 0:00:29]} 23. e5 {[%clk 0:00:26]}  Bc5 {[%clk 0:00:29]} 24. Rc7 {[%clk 0:00:19]}  Bd4 {[%clk 0:00:29]} 25. Rc4 {[%clk 0:00:16]}  Rb5 {[%clk 0:00:28]} 26. Be4 {[%clk 0:00:10]}  Rxe5 {[%clk 0:00:26]} 27. Kf1 {[%clk 0:00:08]}  Rb5 {[%clk 0:00:14]} 28. Bxg6 {[%clk 0:00:08]}  hxg6 {[%clk 0:00:15]} 29. b4 {[%clk 0:00:05]}  e5 {[%clk 0:00:08]} 30. Nf3 {[%clk 0:00:01]}  Ba1 {[%clk 0:00:08]} 31. Nxe5 {[%clk 0:00:01]}  Bxe5 {[%clk 0:00:08]} 0-1


[Site "https://www.chess.com"]

[Event "Titled Tuesday Blitz January 04 2022"]
[White "Bortnyk, Olexandr"]
[Black "Arabidze, Meri"]
[WhiteFideId "14120828"]
[BlackFideId "13604040"]
[WhiteElo "2723"]
[BlackElo "2329"]
[Result "1-0"]
[Round "08"]
[TimeControl "180+1"]
[Date "2022.01.04"]
[WhiteClock "0:01:19"]
[BlackClock "0:00:21"]

1. d4 {[%clk 0:02:57]}  d5 {[%clk 0:02:59]} 2. Nc3 {[%clk 0:02:55]}  Nf6 {[%clk 0:02:58]} 3. Bf4 {[%clk 0:02:56]}  c6 {[%clk 0:02:58]} 4. e3 {[%clk 0:02:56]}  g6 {[%clk 0:02:56]} 5. h4 {[%clk 0:02:55]}  h5 {[%clk 0:02:53]} 6. Be2 {[%clk 0:02:56]}  Bg7 {[%clk 0:02:54]} 7. Nf3 {[%clk 0:02:57]}  O-O {[%clk 0:02:53]} 8. Ne5 {[%clk 0:02:56]}  Nbd7 {[%clk 0:02:52]} 9. Nd3 {[%clk 0:02:47]}  b6 {[%clk 0:02:36]} 10. Bf3 {[%clk 0:02:45]}  Bb7 {[%clk 0:02:32]} 11. Qe2 {[%clk 0:02:43]}  c5 {[%clk 0:02:26]} 12. O-O-O {[%clk 0:02:42]}  Ne4 {[%clk 0:02:08]} 13. Bxe4 {[%clk 0:02:39]}  dxe4 {[%clk 0:02:08]} 14. Ne5 {[%clk 0:02:39]}  Nxe5 {[%clk 0:02:03]} 15. Bxe5 {[%clk 0:02:33]}  Bxe5 {[%clk 0:01:39]} 16. dxe5 {[%clk 0:02:34]}  Qc7 {[%clk 0:01:39]} 17. e6 {[%clk 0:02:20]}  fxe6 {[%clk 0:01:05]} 18. g4 {[%clk 0:02:20]}  Rf3 {[%clk 0:00:44]} 19. gxh5 {[%clk 0:02:13]}  gxh5 {[%clk 0:00:42]} 20. Rhg1+ {[%clk 0:02:12]}  Kf7 {[%clk 0:00:43]} 21. Rg5 {[%clk 0:02:11]}  Rf8 {[%clk 0:00:42]} 22. Rxh5 {[%clk 0:01:35]}  Ke8 {[%clk 0:00:41]} 23. Nb5 {[%clk 0:01:35]}  Qh2 {[%clk 0:00:36]} 24. Rh7 {[%clk 0:01:24]}  Bc6 {[%clk 0:00:21]} 25. Nxa7 {[%clk 0:01:20]}  Rxf2 {[%clk 0:00:21]} 26. Nxc6 {[%clk 0:01:19]} 1-0


[Site "https://www.chess.com"]

[Event "Titled Tuesday Blitz January 04 2022"]
[White "Bulmaga, Irina"]
[Black "Nogerbek, Kazybek"]
[WhiteFideId "13903063"]
[BlackFideId "13710427"]
[WhiteElo "2184"]
[BlackElo "2478"]
[Result "1/2-1/2"]
[Round "08"]
[TimeControl "180+1"]
[Date "2022.01.04"]
[WhiteClock "0:01:19"]
[BlackClock "0:00:04"]

1. e4 {[%clk 0:03:00]}  c5 {[%clk 0:02:17]} 2. Be2 {[%clk 0:02:59]}  Nc6 {[%clk 0:01:51]} 3. f4 {[%clk 0:02:58]}  d5 {[%clk 0:01:51]} 4. d3 {[%clk 0:02:58]}  dxe4 {[%clk 0:01:23]} 5. dxe4 {[%clk 0:02:59]}  Qxd1+ {[%clk 0:01:23]} 6. Bxd1 {[%clk 0:02:59]}  e5 {[%clk 0:01:24]} 7. fxe5 {[%clk 0:02:55]}  Nxe5 {[%clk 0:01:20]} 8. Nf3 {[%clk 0:02:55]}  Bd6 {[%clk 0:01:20]} 9. Nc3 {[%clk 0:02:52]}  Be6 {[%clk 0:01:19]} 10. Nb5 {[%clk 0:02:41]}  Bb8 {[%clk 0:01:19]} 11. c3 {[%clk 0:02:34]}  Nd3+ {[%clk 0:01:09]} 12. Kd2 {[%clk 0:02:26]}  Nxc1 {[%clk 0:00:52]} 13. Kxc1 {[%clk 0:02:27]}  Nf6 {[%clk 0:00:50]} 14. e5 {[%clk 0:02:19]}  Ng4 {[%clk 0:00:39]} 15. Re1 {[%clk 0:02:18]}  a6 {[%clk 0:00:38]} 16. Nd6+ {[%clk 0:02:13]}  Bxd6 {[%clk 0:00:37]} 17. exd6 {[%clk 0:02:14]}  h6 {[%clk 0:00:30]} 18. Bb3 {[%clk 0:02:11]}  Kd7 {[%clk 0:00:14]} 19. Bxe6+ {[%clk 0:02:10]}  fxe6 {[%clk 0:00:15]} 20. h3 {[%clk 0:02:10]}  Nf6 {[%clk 0:00:12]} 21. Ne5+ {[%clk 0:02:10]}  Kxd6 {[%clk 0:00:13]} 22. Nf7+ {[%clk 0:02:11]}  Ke7 {[%clk 0:00:13]} 23. Nxh8 {[%clk 0:02:12]}  Rxh8 {[%clk 0:00:14]} 24. Kc2 {[%clk 0:02:11]}  Nd5 {[%clk 0:00:14]} 25. Re2 {[%clk 0:02:10]}  Rf8 {[%clk 0:00:14]} 26. Rae1 {[%clk 0:02:10]}  Rf6 {[%clk 0:00:14]} 27. g3 {[%clk 0:02:08]}  h5 {[%clk 0:00:12]} 28. h4 {[%clk 0:02:07]}  Kd6 {[%clk 0:00:11]} 29. Re5 {[%clk 0:02:05]}  g6 {[%clk 0:00:10]} 30. a3 {[%clk 0:02:00]}  c4 {[%clk 0:00:10]} 31. a4 {[%clk 0:01:58]}  b5 {[%clk 0:00:08]} 32. axb5 {[%clk 0:01:58]}  axb5 {[%clk 0:00:09]} 33. b3 {[%clk 0:01:55]}  Rf2+ {[%clk 0:00:02]} 34. R5e2 {[%clk 0:01:52]}  Rf3 {[%clk 0:00:03]} 35. Rxe6+ {[%clk 0:01:52]}  Kd7 {[%clk 0:00:04]} 36. bxc4 {[%clk 0:01:49]}  bxc4 {[%clk 0:00:05]} 37. Rxg6 {[%clk 0:01:47]}  Rxc3+ {[%clk 0:00:05]} 38. Kd2 {[%clk 0:01:43]}  Rd3+ {[%clk 0:00:05]} 39. Ke2 {[%clk 0:01:41]}  Ke7 {[%clk 0:00:03]} 40. Rc6 {[%clk 0:01:38]}  Rd4 {[%clk 0:00:01]} 41. Rc1 {[%clk 0:01:36]}  c3 {[%clk 0:00:01]} 42. Kf2 {[%clk 0:01:33]}  Rd2+ {[%clk 0:00:01]} 43. Kf3 {[%clk 0:01:32]}  Kd7 {[%clk 0:00:02]} 44. Rc4 {[%clk 0:01:27]}  Kd6 {[%clk 0:00:01]} 45. R4xc3 {[%clk 0:01:20]}  Nxc3 {[%clk 0:00:01]} 46. Rxc3 {[%clk 0:01:21]}  Rd5 {[%clk 0:00:01]} 47. Re3 {[%clk 0:01:21]}  Rf5+ {[%clk 0:00:01]} 48. Ke4 {[%clk 0:01:20]}  Re5+ {[%clk 0:00:01]} 49. Kf4 {[%clk 0:01:20]}  Rxe3 {[%clk 0:00:02]} 50. Kxe3 {[%clk 0:01:20]}  Ke5 {[%clk 0:00:03]} 51. Kf3 {[%clk 0:01:21]}  Kf5 {[%clk 0:00:03]} 52. Ke3 {[%clk 0:01:19]}  Ke5 {[%clk 0:00:04]} 53. Kd3 {[%clk 0:01:20]}  Kf5 {[%clk 0:00:04]} 54. Ke3 {[%clk 0:01:19]}  Ke5 {[%clk 0:00:04]} 1/2-1/2


[Site "https://www.chess.com"]

[Event "Titled Tuesday Blitz January 04 2022"]
[White "Concio, Michael Jr."]
[Black "Nepomniachtchi, Ian"]
[WhiteFideId "5217873"]
[BlackFideId "4168119"]
[WhiteElo "1896"]
[BlackElo "2740"]
[Result "0-1"]
[Round "08"]
[TimeControl "180+1"]
[Date "2022.01.04"]
[WhiteClock "0:00:01"]
[BlackClock "0:00:38"]

1. e4 {[%clk 0:03:00]}  e5 {[%clk 0:02:59]} 2. Nf3 {[%clk 0:02:59]}  Nc6 {[%clk 0:03:00]} 3. Bc4 {[%clk 0:02:58]}  Nf6 {[%clk 0:02:59]} 4. d3 {[%clk 0:02:58]}  h6 {[%clk 0:02:59]} 5. O-O {[%clk 0:02:57]}  d6 {[%clk 0:03:00]} 6. h3 {[%clk 0:02:57]}  g5 {[%clk 0:03:00]} 7. Nh2 {[%clk 0:02:30]}  Rg8 {[%clk 0:02:55]} 8. Ng4 {[%clk 0:01:29]}  Nxg4 {[%clk 0:02:55]} 9. hxg4 {[%clk 0:01:30]}  h5 {[%clk 0:02:55]} 10. gxh5 {[%clk 0:01:25]}  g4 {[%clk 0:02:56]} 11. g3 {[%clk 0:01:17]}  Rh8 {[%clk 0:02:54]} 12. Kg2 {[%clk 0:01:10]}  Qf6 {[%clk 0:02:50]} 13. c3 {[%clk 0:01:07]}  Rxh5 {[%clk 0:02:48]} 14. Be3 {[%clk 0:01:03]}  Bh6 {[%clk 0:02:29]} 15. Nd2 {[%clk 0:00:58]}  Bd7 {[%clk 0:02:22]} 16. Rh1 {[%clk 0:00:55]}  Bxe3 {[%clk 0:02:16]} 17. fxe3 {[%clk 0:00:53]}  Rh3 {[%clk 0:02:15]} 18. Qf1 {[%clk 0:00:47]}  Qg6 {[%clk 0:02:12]} 19. Rxh3 {[%clk 0:00:45]}  gxh3+ {[%clk 0:02:12]} 20. Kh2 {[%clk 0:00:46]}  Na5 {[%clk 0:02:08]} 21. Bd5 {[%clk 0:00:44]}  c6 {[%clk 0:02:08]} 22. Bb3 {[%clk 0:00:42]}  Nxb3 {[%clk 0:02:07]} 23. axb3 {[%clk 0:00:43]}  Be6 {[%clk 0:02:01]} 24. Qf3 {[%clk 0:00:41]}  Kd7 {[%clk 0:01:58]} 25. d4 {[%clk 0:00:35]}  Kc7 {[%clk 0:01:54]} 26. c4 {[%clk 0:00:27]}  exd4 {[%clk 0:01:52]} 27. exd4 {[%clk 0:00:28]}  Re8 {[%clk 0:01:49]} 28. d5 {[%clk 0:00:21]}  Bg4 {[%clk 0:01:47]} 29. Qf4 {[%clk 0:00:20]}  f5 {[%clk 0:01:41]} 30. Re1 {[%clk 0:00:15]}  Qf6 {[%clk 0:01:24]} 31. c5 {[%clk 0:00:14]}  cxd5 {[%clk 0:01:23]} 32. cxd6+ {[%clk 0:00:14]}  Qxd6 {[%clk 0:01:19]} 33. e5 {[%clk 0:00:14]}  Qc5 {[%clk 0:01:16]} 34. b4 {[%clk 0:00:11]}  Qc2 {[%clk 0:01:15]} 35. e6+ {[%clk 0:00:12]}  Kc8 {[%clk 0:01:12]} 36. e7 {[%clk 0:00:08]}  b6 {[%clk 0:01:12]} 37. Qd4 {[%clk 0:00:07]}  Kb7 {[%clk 0:00:53]} 38. Qxd5+ {[%clk 0:00:07]}  Qc6 {[%clk 0:00:53]} 39. Qxc6+ {[%clk 0:00:04]}  Kxc6 {[%clk 0:00:54]} 40. Nc4 {[%clk 0:00:05]}  Kd7 {[%clk 0:00:54]} 41. Ne5+ {[%clk 0:00:03]}  Kd6 {[%clk 0:00:54]} 42. Nf7+ {[%clk 0:00:02]}  Kd5 {[%clk 0:00:47]} 43. Nh6 {[%clk 0:00:02]}  Bf3 {[%clk 0:00:40]} 44. Ng8 {[%clk 0:00:02]}  Kd6 {[%clk 0:00:38]} 45. Re3 {[%clk 0:00:01]}  Be4 {[%clk 0:00:38]} 0-1


[Site "https://www.chess.com"]

[Event "Titled Tuesday Blitz January 04 2022"]
[White "Gurevich, Dmitry"]
[Black "Drozdowski, Kacper"]
[WhiteFideId "2000407"]
[BlackFideId "1136720"]
[WhiteElo "2506"]
[BlackElo "2507"]
[Result "1/2-1/2"]
[Round "08"]
[TimeControl "180+1"]
[Date "2022.01.04"]
[WhiteClock "0:01:02"]
[BlackClock "0:02:05"]

1. d4 {[%clk 0:03:00]}  Nf6 {[%clk 0:03:00]} 2. c4 {[%clk 0:02:59]}  g6 {[%clk 0:03:00]} 3. Nc3 {[%clk 0:02:58]}  d5 {[%clk 0:03:01]} 4. Nf3 {[%clk 0:02:57]}  Bg7 {[%clk 0:03:01]} 5. cxd5 {[%clk 0:02:58]}  Nxd5 {[%clk 0:03:01]} 6. Bd2 {[%clk 0:02:58]}  O-O {[%clk 0:03:01]} 7. Rc1 {[%clk 0:02:57]}  Nxc3 {[%clk 0:03:00]} 8. Bxc3 {[%clk 0:02:57]}  b6 {[%clk 0:03:00]} 9. e3 {[%clk 0:02:56]}  Bb7 {[%clk 0:03:00]} 10. Be2 {[%clk 0:02:55]}  Nd7 {[%clk 0:03:00]} 11. O-O {[%clk 0:02:54]}  c5 {[%clk 0:03:00]} 12. Qa4 {[%clk 0:02:34]}  cxd4 {[%clk 0:02:55]} 13. Bxd4 {[%clk 0:02:33]}  Bxd4 {[%clk 0:02:51]} 14. Qxd4 {[%clk 0:02:32]}  Nc5 {[%clk 0:02:51]} 15. Qh4 {[%clk 0:02:03]}  Bxf3 {[%clk 0:02:46]} 16. Bxf3 {[%clk 0:01:58]}  e6 {[%clk 0:02:39]} 17. Qxd8 {[%clk 0:01:52]}  Raxd8 {[%clk 0:02:38]} 18. Rfd1 {[%clk 0:01:47]}  Nd3 {[%clk 0:02:34]} 19. Rb1 {[%clk 0:01:37]}  Kg7 {[%clk 0:02:31]} 20. b4 {[%clk 0:01:33]}  Ne5 {[%clk 0:02:27]} 21. Be2 {[%clk 0:01:32]}  Kf6 {[%clk 0:02:27]} 22. f4 {[%clk 0:01:28]}  Nc6 {[%clk 0:02:25]} 23. a3 {[%clk 0:01:26]}  Ke7 {[%clk 0:02:21]} 24. Kf2 {[%clk 0:01:25]}  Rxd1 {[%clk 0:02:17]} 25. Rxd1 {[%clk 0:01:24]}  Rc8 {[%clk 0:02:17]} 26. Ba6 {[%clk 0:01:16]}  Rc7 {[%clk 0:02:15]} 27. Rc1 {[%clk 0:01:13]}  Kd6 {[%clk 0:02:10]} 28. Rd1+ {[%clk 0:01:11]}  Ke7 {[%clk 0:02:10]} 29. Rc1 {[%clk 0:01:11]}  Kd6 {[%clk 0:02:05]} 30. Rd1+ {[%clk 0:01:02]}  Ke7 {[%clk 0:02:05]} 1/2-1/2


[Site "https://www.chess.com"]

[Event "Titled Tuesday Blitz January 04 2022"]
[White "Hamitevici, Vladimir"]
[Black "Gabrielian, Artur"]
[WhiteFideId "13902393"]
[BlackFideId "4131002"]
[WhiteElo "2359"]
[BlackElo "2440"]
[Result "0-1"]
[Round "08"]
[TimeControl "180+1"]
[Date "2022.01.04"]
[WhiteClock "0:00:02"]
[BlackClock "0:00:24"]

1. a3 {[%clk 0:03:00]}  Nf6 {[%clk 0:02:59]} 2. c4 {[%clk 0:03:00]}  g6 {[%clk 0:02:58]} 3. Nc3 {[%clk 0:02:59]}  Bg7 {[%clk 0:02:56]} 4. g3 {[%clk 0:02:59]}  O-O {[%clk 0:02:55]} 5. Bg2 {[%clk 0:02:59]}  d6 {[%clk 0:02:56]} 6. Nf3 {[%clk 0:02:54]}  e5 {[%clk 0:02:56]} 7. O-O {[%clk 0:02:54]}  Re8 {[%clk 0:02:52]} 8. b4 {[%clk 0:02:52]}  e4 {[%clk 0:02:50]} 9. Ne1 {[%clk 0:02:52]}  a5 {[%clk 0:02:49]} 10. Bb2 {[%clk 0:02:51]}  Nc6 {[%clk 0:02:46]} 11. Nc2 {[%clk 0:02:51]}  Ne5 {[%clk 0:02:44]} 12. Ne3 {[%clk 0:02:45]}  Ned7 {[%clk 0:02:25]} 13. Qc2 {[%clk 0:02:41]}  c6 {[%clk 0:02:08]} 14. Nxe4 {[%clk 0:02:29]}  Nxe4 {[%clk 0:02:05]} 15. Bxg7 {[%clk 0:02:30]}  Nxg3 {[%clk 0:02:02]} 16. fxg3 {[%clk 0:02:18]}  Kxg7 {[%clk 0:02:02]} 17. Qc3+ {[%clk 0:02:15]}  f6 {[%clk 0:01:58]} 18. Qd4 {[%clk 0:01:52]}  Qe7 {[%clk 0:01:55]} 19. b5 {[%clk 0:01:49]}  Ne5 {[%clk 0:01:47]} 20. Rf2 {[%clk 0:01:36]}  Be6 {[%clk 0:01:44]} 21. Raf1 {[%clk 0:01:35]}  Rf8 {[%clk 0:01:44]} 22. h3 {[%clk 0:01:12]}  h5 {[%clk 0:01:35]} 23. Kh2 {[%clk 0:00:51]}  a4 {[%clk 0:01:26]} 24. Qh4 {[%clk 0:00:49]}  Rae8 {[%clk 0:01:05]} 25. bxc6 {[%clk 0:00:26]}  bxc6 {[%clk 0:01:05]} 26. c5 {[%clk 0:00:27]}  dxc5 {[%clk 0:00:57]} 27. Qxa4 {[%clk 0:00:27]}  c4 {[%clk 0:00:57]} 28. Qb4 {[%clk 0:00:13]}  Qxb4 {[%clk 0:00:53]} 29. axb4 {[%clk 0:00:13]}  Rb8 {[%clk 0:00:50]} 30. Nc2 {[%clk 0:00:10]}  Rfd8 {[%clk 0:00:49]} 31. Rxf6 {[%clk 0:00:09]}  Bf5 {[%clk 0:00:45]} 32. R6xf5 {[%clk 0:00:07]}  gxf5 {[%clk 0:00:45]} 33. Rxf5 {[%clk 0:00:05]}  Rxd2 {[%clk 0:00:41]} 34. Ne3 {[%clk 0:00:04]}  Re8 {[%clk 0:00:33]} 35. Bf1 {[%clk 0:00:01]}  c3 {[%clk 0:00:32]} 36. Rf4 {[%clk 0:00:02]}  c2 {[%clk 0:00:24]} 0-1


[Site "https://www.chess.com"]

[Event "Titled Tuesday Blitz January 04 2022"]
[White "Harutjunyan, Gevorg"]
[Black "Pichot, Alan"]
[WhiteFideId "13300873"]
[BlackFideId "110973"]
[WhiteElo "2498"]
[BlackElo "2543"]
[Result "0-1"]
[Round "08"]
[TimeControl "180+1"]
[Date "2022.01.04"]
[WhiteClock "0:01:30"]
[BlackClock "0:02:43"]

1. e4 {[%clk 0:02:54]}  c5 {[%clk 0:02:59]} 2. Nf3 {[%clk 0:02:53]}  e6 {[%clk 0:03:00]} 3. d4 {[%clk 0:02:54]}  cxd4 {[%clk 0:03:01]} 4. Nxd4 {[%clk 0:02:54]}  Nc6 {[%clk 0:03:01]} 5. Nc3 {[%clk 0:02:55]}  Qc7 {[%clk 0:03:01]} 6. Be3 {[%clk 0:02:55]}  a6 {[%clk 0:03:02]} 7. Qf3 {[%clk 0:02:55]}  Ne5 {[%clk 0:03:00]} 8. Qg3 {[%clk 0:02:55]}  h5 {[%clk 0:03:00]} 9. f4 {[%clk 0:02:53]}  h4 {[%clk 0:03:00]} 10. Qh3 {[%clk 0:02:53]}  Nc4 {[%clk 0:03:01]} 11. Bxc4 {[%clk 0:02:54]}  Qxc4 {[%clk 0:03:01]} 12. O-O-O {[%clk 0:02:54]}  b5 {[%clk 0:03:01]} 13. f5 {[%clk 0:02:51]}  Bb7 {[%clk 0:03:00]} 14. Rhf1 {[%clk 0:02:50]}  Rc8 {[%clk 0:02:58]} 15. Nb3 {[%clk 0:02:26]}  b4 {[%clk 0:02:54]} 16. fxe6 {[%clk 0:01:59]}  dxe6 {[%clk 0:02:46]} 17. Rd4 {[%clk 0:01:32]}  Qxf1+ {[%clk 0:02:45]} 18. Rd1 {[%clk 0:01:30]}  Qc4 {[%clk 0:02:43]} 0-1


[Site "https://www.chess.com"]

[Event "Titled Tuesday Blitz January 04 2022"]
[White "Kalashian, David"]
[Black "Ibrahimli, Murad"]
[WhiteFideId "13302418"]
[BlackFideId "13410229"]
[WhiteElo "2490"]
[BlackElo "2109"]
[Result "0-1"]
[Round "08"]
[TimeControl "180+1"]
[Date "2022.01.04"]
[WhiteClock "0:00:02"]
[BlackClock "0:01:11"]

1. d4 {[%clk 0:03:00]}  Nf6 {[%clk 0:02:59]} 2. c4 {[%clk 0:02:59]}  e6 {[%clk 0:02:59]} 3. Nf3 {[%clk 0:02:57]}  d5 {[%clk 0:02:59]} 4. Nc3 {[%clk 0:02:57]}  Be7 {[%clk 0:02:58]} 5. Bf4 {[%clk 0:02:57]}  O-O {[%clk 0:02:58]} 6. e3 {[%clk 0:02:57]}  c5 {[%clk 0:02:59]} 7. dxc5 {[%clk 0:02:55]}  Bxc5 {[%clk 0:03:00]} 8. Qc2 {[%clk 0:02:55]}  Nc6 {[%clk 0:03:00]} 9. Rd1 {[%clk 0:02:55]}  Qa5 {[%clk 0:03:00]} 10. a3 {[%clk 0:02:54]}  Be7 {[%clk 0:03:01]} 11. cxd5 {[%clk 0:02:51]}  Nxd5 {[%clk 0:02:57]} 12. Bc4 {[%clk 0:02:31]}  Nxc3 {[%clk 0:02:54]} 13. bxc3 {[%clk 0:02:30]}  Qxa3 {[%clk 0:02:46]} 14. h4 {[%clk 0:02:20]}  Qc5 {[%clk 0:02:44]} 15. Bd3 {[%clk 0:02:18]}  h6 {[%clk 0:02:40]} 16. g4 {[%clk 0:02:17]}  e5 {[%clk 0:02:41]} 17. Bh2 {[%clk 0:02:05]}  Bxg4 {[%clk 0:02:40]} 18. Be2 {[%clk 0:01:54]}  Rad8 {[%clk 0:02:35]} 19. Rg1 {[%clk 0:01:52]}  h5 {[%clk 0:02:33]} 20. Ng5 {[%clk 0:01:45]}  Rxd1+ {[%clk 0:02:31]} 21. Bxd1 {[%clk 0:01:43]}  Bxg5 {[%clk 0:02:31]} 22. Bxg4 {[%clk 0:01:43]}  Bxh4 {[%clk 0:02:02]} 23. Bxh5 {[%clk 0:01:25]}  Qxe3+ {[%clk 0:02:00]} 24. Kf1 {[%clk 0:01:21]}  Qh3+ {[%clk 0:01:59]} 25. Rg2 {[%clk 0:01:21]}  Bg3 {[%clk 0:01:11]} 26. Bxf7+ {[%clk 0:00:27]}  Rxf7 {[%clk 0:01:12]} 27. Bxg3 {[%clk 0:00:28]}  Qf5 {[%clk 0:01:11]} 28. Qb3 {[%clk 0:00:20]}  Qd3+ {[%clk 0:01:10]} 29. Kg1 {[%clk 0:00:19]}  Nd4 {[%clk 0:01:10]} 30. Qa4 {[%clk 0:00:04]}  Nf3+ {[%clk 0:01:10]} 31. Kh1 {[%clk 0:00:02]}  Qf1+ {[%clk 0:01:10]} 32. Rg1 {[%clk 0:00:02]}  Qxg1# {[%clk 0:01:11]} 0-1


[Site "https://www.chess.com"]